[Event "2026 European Womens Championship"]
[Site "Batumi, GE"]
[Date "2026.05.28"]
[Round "4"]
[White "Asatiani, Natali"]
[Black "Aghaverdiyeva, Maryam"]
[Result "1/2-1/2"]
[Board "69"]
[TimeControl "5400+30"]
[WhiteFideId "13636715"]
[BlackFideId "13452509"]
[WhiteElo "1603"]
[BlackElo "2103"]
[BlackTitle "WFM"]
[WhiteClock "0:00:40"]
[BlackClock "0:06:57"]
[Variant "Standard"]

1. e4 {[%clk 1:30:58]}  c5 {[%clk 1:30:18]} 2. c3 {[%clk 1:31:23]}  Nf6 {[%clk 1:30:28]} 3. e5 {[%clk 1:31:47]}  Nd5 {[%clk 1:30:32]}
4. d4 {[%clk 1:32:06]}  cxd4 {[%clk 1:30:45]} 5. Nf3 {[%clk 1:32:28]}  e6 {[%clk 1:30:49]} 6. cxd4 {[%clk 1:32:31]}  d6 {[%clk 1:31:05]}
7. Bc4 {[%clk 1:30:49]}  Be7 {[%clk 1:31:25]} 8. O-O {[%clk 1:30:14]}  O-O {[%clk 1:31:48]} 9. Bd2 {[%clk 1:26:57]}  b6 {[%clk 1:21:54]}
10. Nc3 {[%clk 1:23:05]}  Nxc3 {[%clk 1:21:17]} 11. Bxc3 {[%clk 1:22:53]}  Bb7 {[%clk 1:21:36]} 12. Bb3 {[%clk 1:20:20]}  Nd7 {[%clk 1:16:03]}
13. Bc2 {[%clk 1:14:19]}  Rc8 {[%clk 1:10:23]} 14. Qd3 {[%clk 1:08:54]}  g6 {[%clk 1:09:15]} 15. Rfe1 {[%clk 0:54:22]}  Qc7 {[%clk 1:06:24]}
16. Qe3 {[%clk 0:50:23]}  b5 {[%clk 0:58:42]} 17. Rac1 {[%clk 0:41:52]}  Qb8 {[%clk 0:49:07]} 18. Ng5 {[%clk 0:33:14]}  Nb6 {[%clk 0:45:36]}
19. Nxh7 {[%clk 0:24:49]}  Kxh7 {[%clk 0:39:26]} 20. Bd2 {[%clk 0:21:06]}  Rxc2 {[%clk 0:38:06]} 21. Qh6+ {[%clk 0:20:07]}  Kg8 {[%clk 0:38:29]}
22. Rxc2 {[%clk 0:14:33]}  Rc8 {[%clk 0:38:42]} 23. Rxc8+ {[%clk 0:10:13]}  Qxc8 {[%clk 0:37:44]} 24. Rc1 {[%clk 0:10:29]}  Qd7 {[%clk 0:33:46]}
25. Rc3 {[%clk 0:04:43]}  Bf8 {[%clk 0:31:36]} 26. Qh4 {[%clk 0:05:05]}  Bg7 {[%clk 0:19:09]} 27. Rh3 {[%clk 0:03:20]}  Qc6 {[%clk 0:02:48]}
28. Qd8+ {[%clk 0:02:18]}  Bf8 {[%clk 0:03:12]} 29. Rh8+ {[%clk 0:02:03]}  Kxh8 {[%clk 0:03:36]} 30. Qxf8+ {[%clk 0:02:25]}  Kh7 {[%clk 0:04:01]}
31. Qxf7+ {[%clk 0:02:46]}  Kh8 {[%clk 0:04:25]} 32. Qf8+ {[%clk 0:02:06]}  Kh7 {[%clk 0:04:49]} 33. Qh6+ {[%clk 0:02:18]}  Kg8 {[%clk 0:05:14]}
34. Qxg6+ {[%clk 0:02:37]}  Kh8 {[%clk 0:04:22]} 35. Qf6+ {[%clk 0:02:02]}  Kh7 {[%clk 0:04:25]} 36. Qh6+ {[%clk 0:02:18]}  Kg8 {[%clk 0:04:52]}
37. Qxe6+ {[%clk 0:02:43]}  Kh8 {[%clk 0:05:02]} 38. Qf6+ {[%clk 0:02:25]}  Kg8 {[%clk 0:05:06]} 39. Qg6+ {[%clk 0:02:41]}  Kh8 {[%clk 0:05:25]}
40. Bh6 {[%clk 0:00:40]}  Qd7 {[%clk 0:04:40]} 41. Qxd6 {[%clk 0:00:33]}  Qg4 {[%clk 0:04:35]} 42. f3 {[%clk 0:00:34]}  Bxf3 {[%clk 0:04:37]}
43. Qf6+ {[%clk 0:00:38]}  Kh7 {[%clk 0:05:03]} 44. Qxf3 {[%clk 0:00:45]}  Qxf3 {[%clk 0:05:23]} 45. gxf3 {[%clk 0:01:07]}  Kxh6 {[%clk 0:05:51]}
46. f4 {[%clk 0:00:54]}  Kg6 {[%clk 0:06:08]} 47. Kf2 {[%clk 0:01:05]}  Kf5 {[%clk 0:06:33]} 48. Kf3 {[%clk 0:00:40]}  Nd5 {[%clk 0:06:57]} 1/2-1/2

[Event "2026 European Womens Championship"]
[Site "Batumi, GE"]
[Date "2026.05.28"]
[Round "4"]
[White "Shuqja, Klean"]
[Black "Chighvaria, Ana"]
[Result "1-0"]
[Board "70"]
[TimeControl "5400+30"]
[WhiteFideId "4701585"]
[BlackFideId "13628666"]
[WhiteElo "2092"]
[BlackElo "1518"]
[WhiteTitle "WFM"]
[WhiteClock "0:10:51"]
[BlackClock "0:18:24"]
[Variant "Standard"]

1. e4 {[%clk 1:24:00]}  c6 {[%clk 1:30:54]} 2. d4 {[%clk 1:24:18]}  d5 {[%clk 1:31:16]} 3. Nd2 {[%clk 1:24:43]}  dxe4 {[%clk 1:31:30]}
4. Nxe4 {[%clk 1:25:11]}  Nf6 {[%clk 1:31:49]} 5. Nxf6+ {[%clk 1:25:35]}  exf6 {[%clk 1:32:13]} 6. c3 {[%clk 1:26:02]}  Bd6 {[%clk 1:32:25]}
7. Bd3 {[%clk 1:26:27]}  O-O {[%clk 1:32:44]} 8. Qc2 {[%clk 1:26:55]}  Re8+ {[%clk 1:33:03]} 9. Ne2 {[%clk 1:27:23]}  h5 {[%clk 1:33:20]}
10. Be3 {[%clk 1:27:24]}  Nd7 {[%clk 1:33:35]} 11. c4 {[%clk 1:24:19]}  Nf8 {[%clk 1:32:04]} 12. O-O-O {[%clk 1:23:35]}  Be6 {[%clk 1:31:44]}
13. Kb1 {[%clk 1:23:54]}  Rc8 {[%clk 1:32:01]} 14. Nc3 {[%clk 1:20:06]}  Bb4 {[%clk 1:31:39]} 15. a3 {[%clk 1:14:09]}  Bxc3 {[%clk 1:31:54]}
16. Qxc3 {[%clk 1:14:29]}  b5 {[%clk 1:31:41]} 17. h3 {[%clk 1:09:27]}  bxc4 {[%clk 1:22:10]} 18. Bxc4 {[%clk 1:09:46]}  Bd5 {[%clk 1:21:33]}
19. Rhg1 {[%clk 1:08:59]}  h4 {[%clk 1:18:26]} 20. g3 {[%clk 1:04:30]}  hxg3 {[%clk 1:15:34]} 21. Rxg3 {[%clk 1:04:40]}  Bxc4 {[%clk 1:11:28]}
22. Qxc4 {[%clk 1:05:03]}  Qd5 {[%clk 1:11:47]} 23. Qxd5 {[%clk 0:58:00]}  cxd5 {[%clk 1:12:08]} 24. Rdg1 {[%clk 0:58:25]}  g6 {[%clk 1:11:35]}
25. h4 {[%clk 0:58:27]}  Re4 {[%clk 1:07:56]} 26. h5 {[%clk 0:57:28]}  a6 {[%clk 1:03:03]} 27. hxg6 {[%clk 0:52:14]}  fxg6 {[%clk 1:02:20]}
28. Rh3 {[%clk 0:47:29]}  Kf7 {[%clk 1:00:34]} 29. Rh8 {[%clk 0:40:26]}  Kg7 {[%clk 0:52:10]} 30. Rgh1 {[%clk 0:39:29]}  f5 {[%clk 0:51:34]}
31. Bd2 {[%clk 0:21:23]}  Kf7 {[%clk 0:46:11]} 32. Bb4 {[%clk 0:11:24]}  Rxd4 {[%clk 0:39:33]} 33. Bxf8 {[%clk 0:11:00]}  Rxf8 {[%clk 0:39:54]}
34. R1h7+ {[%clk 0:11:22]}  Ke8 {[%clk 0:40:14]} 35. Rxf8+ {[%clk 0:11:30]}  Kxf8 {[%clk 0:40:37]} 36. Ra7 {[%clk 0:11:53]}  Ra4 {[%clk 0:23:35]}
37. Ka2 {[%clk 0:10:17]}  g5 {[%clk 0:21:37]} 38. b4 {[%clk 0:09:51]}  g4 {[%clk 0:18:41]} 39. Kb3 {[%clk 0:10:14]}  f4 {[%clk 0:18:23]}
40. Rd7 {[%clk 0:10:04]}  g3 {[%clk 0:18:03]} 41. fxg3 {[%clk 0:10:27]}  fxg3 {[%clk 0:18:24]} 42. Rxd5 {[%clk 0:10:51]} 1-0

[Event "2026 European Womens Championship"]
[Site "Batumi, GE"]
[Date "2026.05.28"]
[Round "4"]
[White "Vakhania, Aleksandra"]
[Black "Damaso Tacoronte, Carolina"]
[Result "0-1"]
[Board "73"]
[TimeControl "5400+30"]
[WhiteFideId "13602560"]
[BlackFideId "2292858"]
[WhiteElo "2079"]
[BlackElo "1890"]
[WhiteTitle "WIM"]
[WhiteClock "0:04:25"]
[BlackClock "0:01:33"]
[Variant "Standard"]

1. d4 {[%clk 1:30:02]}  d5 {[%clk 1:30:21]} 2. Nf3 {[%clk 1:28:36]}  Nf6 {[%clk 1:28:52]} 3. Bg5 {[%clk 1:28:44]}  Nbd7 {[%clk 1:27:59]}
4. e3 {[%clk 1:28:58]}  e6 {[%clk 1:27:56]} 5. Bd3 {[%clk 1:28:53]}  Be7 {[%clk 1:27:30]} 6. Nbd2 {[%clk 1:27:28]}  c5 {[%clk 1:24:15]}
7. c3 {[%clk 1:27:47]}  O-O {[%clk 1:22:17]} 8. h4 {[%clk 1:27:16]}  Re8 {[%clk 1:07:18]} 9. Ne5 {[%clk 1:20:07]}  Nxe5 {[%clk 0:49:03]}
10. dxe5 {[%clk 1:16:06]}  Nd7 {[%clk 0:49:11]} 11. Bf4 {[%clk 1:11:28]}  Nf8 {[%clk 0:43:52]} 12. Qg4 {[%clk 1:08:15]}  f5 {[%clk 0:34:08]}
13. Qg3 {[%clk 1:05:41]}  Nd7 {[%clk 0:32:02]} 14. h5 {[%clk 0:59:56]}  Kh8 {[%clk 0:28:07]} 15. Nf3 {[%clk 1:00:09]}  c4 {[%clk 0:25:58]}
16. Bc2 {[%clk 0:56:33]}  Nc5 {[%clk 0:21:56]} 17. Ng5 {[%clk 0:48:34]}  Bxg5 {[%clk 0:22:05]} 18. Bxg5 {[%clk 0:48:59]}  Qc7 {[%clk 0:20:19]}
19. h6 {[%clk 0:48:08]}  g6 {[%clk 0:19:24]} 20. Bf6+ {[%clk 0:43:45]}  Kg8 {[%clk 0:19:53]} 21. f4 {[%clk 0:43:55]}  b5 {[%clk 0:19:00]}
22. Rh5 {[%clk 0:40:49]}  a5 {[%clk 0:16:33]} 23. Rg5 {[%clk 0:40:19]}  Qf7 {[%clk 0:16:48]} 24. Qh4 {[%clk 0:37:12]}  b4 {[%clk 0:16:23]}
25. g4 {[%clk 0:35:31]}  b3 {[%clk 0:13:37]} 26. axb3 {[%clk 0:31:27]}  cxb3 {[%clk 0:13:55]} 27. Bb1 {[%clk 0:20:20]}  a4 {[%clk 0:14:02]}
28. gxf5 {[%clk 0:18:18]}  exf5 {[%clk 0:14:24]} 29. Rg2 {[%clk 0:13:25]}  Be6 {[%clk 0:13:04]} 30. Qh5 {[%clk 0:13:19]}  Kf8 {[%clk 0:09:59]}
31. Qe2 {[%clk 0:13:11]}  Reb8 {[%clk 0:09:52]} 32. Ra3 {[%clk 0:13:16]}  Bd7 {[%clk 0:09:20]} 33. Bd3 {[%clk 0:12:42]}  Ra5 {[%clk 0:08:10]}
34. Rg1 {[%clk 0:10:29]}  Bb5 {[%clk 0:07:08]} 35. Bxb5 {[%clk 0:09:45]}  Raxb5 {[%clk 0:07:38]} 36. Qd2 {[%clk 0:08:20]}  Rc8 {[%clk 0:05:58]}
37. Qd4 {[%clk 0:07:49]}  Rb7 {[%clk 0:02:35]} 38. Ke2 {[%clk 0:06:54]}  Rd7 {[%clk 0:01:34]} 39. Raa1 {[%clk 0:04:31]}  Ra7 {[%clk 0:01:27]}
40. Rgd1 {[%clk 0:03:37]}  Rd7 {[%clk 0:01:29]} 41. Qb4 {[%clk 0:01:21]}  Kg8 {[%clk 0:01:47]} 42. Bg5 {[%clk 0:26:02]}  Qe6 {[%clk 0:29:20]}
43. Rd4 {[%clk 0:23:18]}  Rb7 {[%clk 0:18:16]} 44. Qa3 {[%clk 0:22:35]}  Qa6+ {[%clk 0:17:19]} 45. Kf3 {[%clk 0:22:39]}  Qc6 {[%clk 0:13:14]}
46. Rad1 {[%clk 0:14:02]}  Ne6 {[%clk 0:10:27]} 47. R4d3 {[%clk 0:08:05]}  d4+ {[%clk 0:09:21]} 48. Kf2 {[%clk 0:08:30]}  dxe3+ {[%clk 0:08:30]}
49. Kxe3 {[%clk 0:07:34]}  Qe4+ {[%clk 0:06:38]} 50. Kf2 {[%clk 0:07:32]}  Re8 {[%clk 0:03:38]} 51. Qd6 {[%clk 0:03:13]}  Nxf4 {[%clk 0:02:53]}
52. Kg3 {[%clk 0:01:51]}  Nxd3 {[%clk 0:01:43]} 53. Bf6 {[%clk 0:01:59]}  Qf4+ {[%clk 0:01:16]} 54. Kg2 {[%clk 0:02:17]}  Qg4+ {[%clk 0:00:59]}
55. Kh2 {[%clk 0:02:41]}  Qe2+ {[%clk 0:01:04]} 56. Kh3 {[%clk 0:02:34]}  Nf2+ {[%clk 0:00:51]} 57. Kg3 {[%clk 0:02:59]}  Qxd1 {[%clk 0:00:50]}
58. Qc6 {[%clk 0:03:18]}  Ne4+ {[%clk 0:00:39]} 59. Kf4 {[%clk 0:03:17]}  Qd7 {[%clk 0:00:54]} 60. Qc4+ {[%clk 0:03:34]}  Qe6 {[%clk 0:00:54]}
61. Qxa4 {[%clk 0:04:00]}  Nxf6 {[%clk 0:01:08]} 62. exf6 {[%clk 0:04:25]}  Qe4+ {[%clk 0:01:33]} 0-1

[Event "2026 European Womens Championship"]
[Site "Batumi, GE"]
[Date "2026.05.28"]
[Round "4"]
[White "Krkyasharyan, Sona"]
[Black "Xing, Lida"]
[Result "1-0"]
[Board "74"]
[TimeControl "5400+30"]
[WhiteFideId "13316729"]
[BlackFideId "13326171"]
[WhiteElo "2063"]
[BlackElo "1598"]
[WhiteTitle "WFM"]
[WhiteClock "0:53:15"]
[BlackClock "0:35:51"]
[Variant "Standard"]

1. d4 {[%clk 1:30:57]}  Nf6 {[%clk 1:30:55]} 2. c4 {[%clk 1:31:22]}  e6 {[%clk 1:31:21]} 3. Nf3 {[%clk 1:31:47]}  Bb4+ {[%clk 1:31:36]}
4. Bd2 {[%clk 1:32:08]}  Qe7 {[%clk 1:31:59]} 5. g3 {[%clk 1:32:30]}  Bxd2+ {[%clk 1:32:22]} 6. Qxd2 {[%clk 1:32:52]}  Nc6 {[%clk 1:32:42]}
7. Bg2 {[%clk 1:32:46]}  d5 {[%clk 1:32:58]} 8. O-O {[%clk 1:32:34]}  O-O {[%clk 1:33:19]} 9. Nc3 {[%clk 1:30:12]}  Rd8 {[%clk 1:23:45]}
10. Rfd1 {[%clk 1:27:45]}  Ne4 {[%clk 1:19:54]} 11. Qc2 {[%clk 1:27:40]}  f5 {[%clk 1:18:29]} 12. a3 {[%clk 1:25:27]}  Qf6 {[%clk 1:07:09]}
13. b4 {[%clk 1:21:46]}  a6 {[%clk 1:03:25]} 14. e3 {[%clk 1:17:45]}  Ne7 {[%clk 0:57:55]} 15. Ne5 {[%clk 1:15:11]}  c6 {[%clk 0:56:24]}
16. a4 {[%clk 1:13:35]}  Bd7 {[%clk 0:52:38]} 17. b5 {[%clk 1:07:29]}  cxb5 {[%clk 0:51:39]} 18. axb5 {[%clk 1:07:01]}  Be8 {[%clk 0:47:07]}
19. bxa6 {[%clk 1:05:41]}  bxa6 {[%clk 0:47:24]} 20. Rdb1 {[%clk 1:03:45]}  Bh5 {[%clk 0:40:55]} 21. Rb6 {[%clk 0:59:10]}  Ng6 {[%clk 0:38:09]}
22. Nxd5 {[%clk 0:55:13]}  Rxd5 {[%clk 0:35:30]} 23. cxd5 {[%clk 0:53:24]}  Nxe5 {[%clk 0:35:51]} 24. Rxe6 {[%clk 0:53:15]} 1-0

[Event "2026 European Womens Championship"]
[Site "Batumi, GE"]
[Date "2026.05.28"]
[Round "4"]
[White "Khairova, Evelina"]
[Black "Golsta, Madara"]
[Result "0-1"]
[Board "75"]
[TimeControl "5400+30"]
[WhiteFideId "2845768"]
[BlackFideId "11607386"]
[WhiteElo "1880"]
[BlackElo "2023"]
[WhiteClock "0:01:19"]
[BlackClock "0:34:43"]
[Variant "Standard"]

1. e4 {[%clk 1:30:56]}  c5 {[%clk 1:30:53]} 2. Nf3 {[%clk 1:31:23]}  g6 {[%clk 1:31:15]} 3. c3 {[%clk 1:31:48]}  Nf6 {[%clk 1:25:01]}
4. e5 {[%clk 1:22:34]}  Nd5 {[%clk 1:25:15]} 5. d4 {[%clk 1:20:48]}  cxd4 {[%clk 1:24:16]} 6. cxd4 {[%clk 1:16:33]}  Bg7 {[%clk 1:22:33]}
7. Nc3 {[%clk 1:10:32]}  Nxc3 {[%clk 1:19:54]} 8. bxc3 {[%clk 1:10:54]}  O-O {[%clk 1:19:50]} 9. Bf4 {[%clk 0:57:42]}  Qa5 {[%clk 1:10:30]}
10. Qb3 {[%clk 0:50:55]}  d6 {[%clk 1:10:14]} 11. exd6 {[%clk 0:41:42]}  exd6 {[%clk 1:10:34]} 12. Bxd6 {[%clk 0:32:32]}  Re8+ {[%clk 1:10:33]}
13. Kd2 {[%clk 0:26:43]}  Nc6 {[%clk 0:49:00]} 14. Qa3 {[%clk 0:16:46]}  Qf5 {[%clk 0:46:48]} 15. Qc5 {[%clk 0:14:02]}  Bh6+ {[%clk 0:44:34]}
16. Kd1 {[%clk 0:14:21]}  Qe4 {[%clk 0:41:50]} 17. Qc4 {[%clk 0:06:40]}  Bf5 {[%clk 0:40:15]} 18. Qe2 {[%clk 0:06:06]}  Qd5 {[%clk 0:39:17]}
19. Be5 {[%clk 0:06:31]}  Rad8 {[%clk 0:35:24]} 20. Qb5 {[%clk 0:01:57]}  Nxe5 {[%clk 0:35:25]} 21. Qxd5 {[%clk 0:00:58]}  Rxd5 {[%clk 0:35:47]}
22. Nxe5 {[%clk 0:01:20]}  Rexe5 {[%clk 0:36:06]} 23. Bc4 {[%clk 0:01:46]}  Rd7 {[%clk 0:34:46]} 24. h3 {[%clk 0:01:19]}  Rc5 {[%clk 0:34:43]} 0-1

[Event "2026 European Womens Championship"]
[Site "Batumi, GE"]
[Date "2026.05.28"]
[Round "4"]
[White "Chkhartishvili, Lika"]
[Black "Diasamidze, Lulu"]
[Result "1/2-1/2"]
[Board "76"]
[TimeControl "5400+30"]
[WhiteFideId "13635166"]
[BlackFideId "13623818"]
[WhiteElo "1822"]
[BlackElo "1924"]
[WhiteClock "0:03:37"]
[BlackClock "0:01:47"]
[Variant "Standard"]

1. e4 {[%clk 1:30:57]}  c5 {[%clk 1:30:56]} 2. Nf3 {[%clk 1:31:23]}  e6 {[%clk 1:31:02]} 3. d4 {[%clk 1:31:47]}  cxd4 {[%clk 1:31:16]}
4. Nxd4 {[%clk 1:32:11]}  Nc6 {[%clk 1:31:31]} 5. Nb5 {[%clk 1:32:20]}  d6 {[%clk 1:30:26]} 6. c4 {[%clk 1:32:43]}  a6 {[%clk 1:26:52]}
7. Nd4 {[%clk 1:31:56]}  Nf6 {[%clk 1:27:05]} 8. Nc3 {[%clk 1:32:14]}  Be7 {[%clk 1:24:26]} 9. Be2 {[%clk 1:31:35]}  O-O {[%clk 1:22:48]}
10. O-O {[%clk 1:29:55]}  Qc7 {[%clk 1:18:53]} 11. Be3 {[%clk 1:28:32]}  Nxd4 {[%clk 1:06:41]} 12. Bxd4 {[%clk 1:27:55]}  Qc6 {[%clk 1:05:48]}
13. Qd3 {[%clk 1:21:41]}  Nd7 {[%clk 1:00:25]} 14. Rac1 {[%clk 1:13:57]}  Ne5 {[%clk 0:57:21]} 15. Qg3 {[%clk 1:09:46]}  Ng6 {[%clk 0:51:40]}
16. f4 {[%clk 0:54:21]}  Bh4 {[%clk 0:38:23]} 17. Qd3 {[%clk 0:49:54]}  Rd8 {[%clk 0:26:56]} 18. Be3 {[%clk 0:46:32]}  Bf6 {[%clk 0:26:40]}
19. g3 {[%clk 0:42:36]}  Rb8 {[%clk 0:21:17]} 20. Bf3 {[%clk 0:34:40]}  Bxc3 {[%clk 0:20:39]} 21. Qxc3 {[%clk 0:31:11]}  b6 {[%clk 0:20:09]}
22. b4 {[%clk 0:26:45]}  Bb7 {[%clk 0:20:07]} 23. Bd4 {[%clk 0:25:00]}  e5 {[%clk 0:15:30]} 24. fxe5 {[%clk 0:23:59]}  dxe5 {[%clk 0:14:38]}
25. Bxe5 {[%clk 0:23:34]}  Nxe5 {[%clk 0:14:25]} 26. Qxe5 {[%clk 0:23:56]}  f6 {[%clk 0:12:46]} 27. Qf4 {[%clk 0:22:55]}  Qa4 {[%clk 0:12:39]}
28. c5 {[%clk 0:20:01]}  bxc5 {[%clk 0:12:28]} 29. bxc5 {[%clk 0:20:15]}  Rbc8 {[%clk 0:11:52]} 30. Rfd1 {[%clk 0:13:24]}  Re8 {[%clk 0:08:49]}
31. Qg4 {[%clk 0:11:05]}  Bc6 {[%clk 0:06:33]} 32. Rd2 {[%clk 0:05:49]}  Qa3 {[%clk 0:06:45]} 33. Rdc2 {[%clk 0:05:19]}  Qe3+ {[%clk 0:06:54]}
34. Kg2 {[%clk 0:05:03]}  Rcd8 {[%clk 0:07:10]} 35. Qf4 {[%clk 0:04:56]}  Qd3 {[%clk 0:06:55]} 36. Rf2 {[%clk 0:04:40]}  Qa3 {[%clk 0:06:02]}
37. Rcc2 {[%clk 0:04:26]}  Rd3 {[%clk 0:05:05]} 38. h3 {[%clk 0:03:37]}  Qa4 {[%clk 0:03:55]} 39. Rcd2 {[%clk 0:03:16]}  Rxd2 {[%clk 0:01:33]}
40. Rxd2 {[%clk 0:03:37]}  Qa3 {[%clk 0:01:47]} 1/2-1/2

[Event "2026 European Womens Championship"]
[Site "Batumi, GE"]
[Date "2026.05.28"]
[Round "4"]
[White "Manukyan, Tamara"]
[Black "Muradyan, Anahit"]
[Result "1/2-1/2"]
[Board "77"]
[TimeControl "5400+30"]
[WhiteFideId "13321307"]
[BlackFideId "13314807"]
[WhiteElo "1707"]
[BlackElo "1977"]
[WhiteClock "0:45:30"]
[BlackClock "0:25:17"]
[Variant "Standard"]

1. e4 {[%clk 1:30:57]}  c5 {[%clk 1:30:57]} 2. Nf3 {[%clk 1:31:23]}  e6 {[%clk 1:31:22]} 3. c3 {[%clk 1:31:50]}  Nf6 {[%clk 1:31:48]}
4. e5 {[%clk 1:32:16]}  Nd5 {[%clk 1:32:15]} 5. d4 {[%clk 1:32:37]}  cxd4 {[%clk 1:32:32]} 6. cxd4 {[%clk 1:33:03]}  d6 {[%clk 1:32:38]}
7. Bc4 {[%clk 1:33:28]}  Nb6 {[%clk 1:32:48]} 8. Bd3 {[%clk 1:32:02]}  dxe5 {[%clk 1:27:58]} 9. dxe5 {[%clk 1:32:24]}  Bb4+ {[%clk 1:28:14]}
10. Nc3 {[%clk 1:29:56]}  Nd5 {[%clk 1:18:33]} 11. Qc2 {[%clk 1:23:08]}  Nc6 {[%clk 1:13:10]} 12. O-O {[%clk 1:23:04]}  Bxc3 {[%clk 1:08:10]}
13. bxc3 {[%clk 1:23:28]}  Qc7 {[%clk 1:08:27]} 14. Re1 {[%clk 1:22:11]}  h6 {[%clk 1:04:33]} 15. Ba3 {[%clk 1:19:50]}  Qa5 {[%clk 1:03:53]}
16. Bb2 {[%clk 1:18:37]}  O-O {[%clk 1:03:41]} 17. Re4 {[%clk 1:18:30]}  Nde7 {[%clk 0:54:00]} 18. Bc1 {[%clk 1:12:20]}  f5 {[%clk 0:46:12]}
19. Ra4 {[%clk 1:06:36]}  Qc7 {[%clk 0:46:04]} 20. Bf4 {[%clk 1:05:19]}  Nd5 {[%clk 0:35:46]} 21. Re1 {[%clk 1:00:01]}  Bd7 {[%clk 0:38:31]}
22. Qd2 {[%clk 0:58:09]}  Rf7 {[%clk 0:27:23]} 23. Bxh6 {[%clk 0:48:52]}  gxh6 {[%clk 0:25:40]} 24. Qxh6 {[%clk 0:49:17]}  Rg7 {[%clk 0:09:10]}
25. Rh4 {[%clk 0:45:24]}  Qd8 {[%clk 0:09:10]} 26. Rh5 {[%clk 0:43:18]}  Qe7 {[%clk 0:04:17]} 27. Qh8+ {[%clk 0:39:45]}  Kf7 {[%clk 0:04:42]}
28. Qxa8 {[%clk 0:40:08]}  Nf4 {[%clk 0:01:37]} 29. Rh6 {[%clk 0:37:59]}  Rxg2+ {[%clk 0:01:49]} 30. Kh1 {[%clk 0:37:15]}  Nxd3 {[%clk 0:01:19]}
31. h4 {[%clk 0:22:09]}  Nxe1 {[%clk 0:00:43]} 32. Ng5+ {[%clk 0:22:07]}  Rxg5 {[%clk 0:00:49]} 33. hxg5 {[%clk 0:22:33]}  Qe8 {[%clk 0:00:42]}
34. Qxb7 {[%clk 0:22:05]}  Nxe5 {[%clk 0:00:50]} 35. f4 {[%clk 0:21:27]}  Kg8 {[%clk 0:00:49]} 36. Qxa7 {[%clk 0:18:03]}  Ng4 {[%clk 0:00:36]}
37. Rh3 {[%clk 0:15:33]}  Bc6+ {[%clk 0:00:41]} 38. Kg1 {[%clk 0:15:56]}  Nf3+ {[%clk 0:00:57]} 39. Kf1 {[%clk 0:15:44]}  Bb5+ {[%clk 0:00:43]}
40. Kg2 {[%clk 0:16:07]}  Ne1+ {[%clk 0:00:33]} 41. Kg1 {[%clk 0:16:29]}  Qd7 {[%clk 0:26:27]} 42. Qb8+ {[%clk 0:45:04]}  Qe8 {[%clk 0:26:52]}
43. Qa7 {[%clk 0:45:30]}  Qd7 {[%clk 0:25:17]} 1/2-1/2

[Event "2026 European Womens Championship"]
[Site "Batumi, GE"]
[Date "2026.05.28"]
[Round "4"]
[White "Recica, Jona"]
[Black "Saraci, Rinesa"]
[Result "1/2-1/2"]
[Board "78"]
[TimeControl "5400+30"]
[WhiteFideId "22105239"]
[BlackFideId "4701976"]
[WhiteElo "1842"]
[BlackElo "1754"]
[BlackTitle "WCM"]
[WhiteClock "1:16:30"]
[BlackClock "1:11:05"]
[Variant "Standard"]

1. e4 {[%clk 1:29:06]}  e5 {[%clk 1:30:22]} 2. Nf3 {[%clk 1:29:17]}  Nc6 {[%clk 1:30:13]} 3. d4 {[%clk 1:28:30]}  exd4 {[%clk 1:28:01]}
4. Bc4 {[%clk 1:27:21]}  Nf6 {[%clk 1:25:19]} 5. Ng5 {[%clk 1:25:29]}  Ne5 {[%clk 1:22:08]} 6. Bb3 {[%clk 1:24:31]}  h6 {[%clk 1:20:28]}
7. f4 {[%clk 1:22:52]}  hxg5 {[%clk 1:19:41]} 8. fxe5 {[%clk 1:23:14]}  Nxe4 {[%clk 1:17:12]} 9. Bxf7+ {[%clk 1:18:16]}  Kxf7 {[%clk 1:14:29]}
10. Qf3+ {[%clk 1:17:59]}  Kg8 {[%clk 1:12:21]} 11. O-O {[%clk 1:17:02]}  Nc5 {[%clk 1:10:20]} 12. Qf7+ {[%clk 1:15:57]}  Kh7 {[%clk 1:10:09]}
13. Qh5+ {[%clk 1:16:19]}  Kg8 {[%clk 1:10:30]} 14. Qf7+ {[%clk 1:16:35]}  Kh7 {[%clk 1:10:50]} 15. Qh5+ {[%clk 1:16:55]}  Kg8 {[%clk 1:11:05]}
16. Qf7+ {[%clk 1:16:52]}  Kh7 {[%clk 1:11:05]} 17. Qh5+ {[%clk 1:16:30]}  Kg8 {[%clk 1:11:05]} 1/2-1/2